[Event "BAN-chT Golden Jubilee 2021-22"]
[Site "Dhaka"]
[Date "2022.03.20"]
[Round "11.15"]
[White "Harshad S"]
[Black "Himanshu, Sharma"]
[Result "1-0"]
[ECO "B62"]
[WhiteElo "2328"]
[BlackElo "2391"]
[Annotator "ChessBase"]
[PlyCount "103"]
[EventDate "2022.03.10"]
[EventType "team-tourn"]
[EventCountry "BAN"]
[SourceTitle "playchess.com"]
[Source "ChessBase"]
[SourceQuality "1"]
[TimeControl "40/5400+30:1800+30"]

1. e4 {[%emt 0:00:03]} c5 {[%emt 0:02:18]} 2. Nf3 {[%emt 0:00:48]} Nc6 {[%emt 0:00:20]} 3. d4 {[%emt 0:01:16]} cxd4 {[%emt 0:00:05]} 4. Nxd4 {[%emt 0:00:12]} Nf6 {[%emt 0:00:18]} 5. Nc3 {[%emt 0:00:23]} d6 {[%emt 0:00:38]} 6. Bg5 {[%emt 0:01:59]} e6 {[%emt 0:02:08]} 7. Bb5 {[%emt 0:00:58]} Bd7 {[%emt 0:01:28]} 8. Qd3 {[%emt 0:01:24]} h6 {[%emt 0:06:16]} 9. Bh4 {[%emt 0:02:09]} Ne5 {[%emt 0:04:48]} 10. Qh3 {[%emt 0:02:22]} Bxb5 {[%emt 0:03:49]} 11. Ndxb5 {[%emt 0:03:49]} a6 {[%emt 0:02:44]} 12. Nd4 {[%emt 0:00:39]} Be7 {[%emt 0:01:29]} 13. f4 {[%emt 0:04:14]} Nc6 {[%emt 0:12:12]} 14. O-O-O {[%emt 0:08:02]} O-O {[%emt 0:13:34]} 15. Kb1 {[%emt 0:13:11]} Ne8 {[%emt 0:10:21]} 16. Bf2 {[%emt 0:02:07]} Nxd4 {[%emt 0:03:00]} 17. Bxd4 {[%emt 0:01:00]} b5 {[%emt 0:00:15]} 18. g4 {[%emt 0:03:36]} b4 {[%emt 0:01:06]} 19. Na4 {[%emt 0:00:43]} e5 {[%emt 0:01:15]} 20. fxe5 {[%emt 0:01:30]} dxe5 {[%emt 0:00:15]} 21. Bc5 {[%emt 0:09:10]} Qc7 {[%emt 0:00:15]} 22. Bxe7 {[%emt 0:00:30]} Qxe7 {[%emt 0:00:05]} 23. Nb6 {[%emt 0:00:04]} Rb8 {[%emt 0:03:17]} 24. Nd7 {[%emt 0:00:32]} Nd6 {[%emt 0:02:54]} 25. Nxf8 {[%emt 0:00:48]} Nxe4 {[%emt 0:04:33]} 26. Qd3 {[%emt 0:03:25]} Qb7 {[%emt 0:09:04]} 27. Nd7 {[%emt 0:11:24]} Nc3+ {[%emt 0:01:21]} 28. Ka1 {[%emt 0:03:11]} Nxd1 {[%emt 0:00:20]} 29. Qxd1 {[%emt 0:01:24]} Re8 {[%emt 0:00:49]} 30. Nc5 {[%emt 0:02:29]} Qc6 {[%emt 0:00:12]} 31. Nb3 {[%emt 0:00:31]} g6 {[%emt 0:04:05]} 32. Kb1 {[%emt 0:02:29]} e4 {[%emt 0:00:22]} 33. Re1 {[%emt 0:00:20]} e3 {[%emt 0:04:18]} 34. Qe2 {[%emt 0:02:49]} Kg7 {[%emt 0:00:49]} 35. Na5 {[%emt 0:00:39]} Qc7 {[%emt 0:01:32]} 36. Nc4 {[%emt 0:00:26]} Re4 {[%emt 0:00:43]} 37. b3 {[%emt 0:01:22]} a5 {[%emt 0:00:23]} 38. h3 {[%emt 0:01:49]} Qg3 {[%emt 0:00:24]} 39. Nxe3 {[%emt 0:03:07]} Qxh3 {[%emt 0:00:53]} 40. Qf2 {[%emt 0:00:00]} h5 {[%emt 0:00:00]} 41. gxh5 {[%emt 0:02:31]} Qxh5 {[%emt 0:03:54]} 42. Rf1 {[%emt 0:03:45]} f5 {[%emt 0:01:45]} 43. Nxf5+ {[%emt 0:01:09]} gxf5 {[%emt 0:00:35]} 44. Qxf5 {[%emt 0:00:15]} Qxf5 {[%emt 0:07:31]} 45. Rxf5 {[%emt 0:00:02]} a4 {[%emt 0:00:59]} 46. bxa4 {[%emt 0:00:12]} Re3 {[%emt 0:00:05]} 47. Rf4 {[%emt 0:00:23]} Ra3 {[%emt 0:01:07]} 48. Rxb4 {[%emt 0:00:03]} Kf6 {[%emt 0:00:09]} 49. Kb2 {[%emt 0:00:12]} Re3 {[%emt 0:00:03]} 50. Rd4 {[%emt 0:00:12]} Ke5 {[%emt 0:00:10]} 51. Rd8 {[%emt 0:00:12]} Rh3 {[%emt 0:00:25]} 52. c3 {[%emt 0:40:40]} 1-0

[Event "BAN-chT Golden Jubilee 2021-22"]
[Site "Dhaka"]
[Date "2022.03.20"]
[Round "11.24"]
[White "Sultana, Sharmin Shirin"]
[Black "Subrota, Biswas"]
[Result "0-1"]
[ECO "D04"]
[WhiteElo "1998"]
[BlackElo "2202"]
[Annotator "ChessBase"]
[PlyCount "88"]
[EventDate "2022.03.10"]
[EventType "team-tourn"]
[EventCountry "BAN"]
[SourceTitle "playchess.com"]
[Source "ChessBase"]
[SourceQuality "1"]
[TimeControl "40/5400+30:1800+30"]

1. d4 {[%emt 0:01:48]} Nf6 {[%emt 0:08:55]} 2. Nf3 {[%emt 0:00:23]} c5 {[%emt 0:02:20]} 3. e3 {[%emt 0:00:53]} d5 {[%emt 0:01:28]} 4. b3 {[%emt 0:00:46]} cxd4 {[%emt 0:00:06]} 5. exd4 {[%emt 0:00:11]} Nc6 {[%emt 0:00:39]} 6. Bd3 {[%emt 0:07:20]} Bg4 {[%emt 0:00:23]} 7. Bb2 {[%emt 0:00:42]} e6 {[%emt 0:00:55]} 8. O-O {[%emt 0:03:41]} Bd6 {[%emt 0:02:52]} 9. Nbd2 {[%emt 0:01:41]} O-O {[%emt 0:00:13]} 10. Re1 {[%emt 0:04:37]} Nb4 {[%emt 0:00:44]} 11. Nf1 {[%emt 0:23:23]} Rc8 {[%emt 0:01:34]} 12. c3 {[%emt 0:10:35]} Nxd3 {[%emt 0:00:13]} 13. Qxd3 {[%emt 0:00:02]} Qa5 {[%emt 0:00:54]} 14. Ne5 {[%emt 0:07:12]} Bf5 {[%emt 0:00:44]} 15. Qf3 {[%emt 0:04:24]} Ne4 {[%emt 0:08:46]} 16. Rec1 {[%emt 0:05:48]} f6 {[%emt 0:00:50]} 17. Nd7 {[%emt 0:02:26]} Rf7 {[%emt 0:01:10]} 18. b4 {[%emt 0:00:15]} Qd8 {[%emt 0:00:06]} 19. Nc5 {[%emt 0:00:14]} Ng5 {[%emt 0:00:57]} 20. Qe2 {[%emt 0:02:36]} b6 {[%emt 0:00:18]} 21. Nb3 {[%emt 0:03:09]} Rfc7 {[%emt 0:04:48]} 22. Nbd2 {[%emt 0:01:53]} Qe8 {[%emt 0:01:45]} 23. Ne3 {[%emt 0:04:12]} Bg6 {[%emt 1:01:20]} 24. Re1 {[%emt 0:03:11]} Re7 {[%emt 0:00:00]} 25. a4 {[%emt 0:00:28]} h5 {[%emt 0:00:00]} 26. b5 {[%emt 0:03:32]} h4 {[%emt 0:00:00]} 27. h3 {[%emt 0:00:53]} Bh5 {[%emt 0:00:00]} 28. Qd3 {[%emt 0:00:09]} Qf8 {[%emt 0:00:00]} 29. a5 {[%emt 0:03:16]} f5 {[%emt 0:00:00]} 30. Ba3 {[%emt 0:01:33]} Bxa3 {[%emt 0:00:00]} 31. Rxa3 {[%emt 0:00:02]} Rec7 {[%emt 0:00:00]} 32. Rea1 {[%emt 0:02:50]} bxa5 {[%emt 0:00:00]} 33. c4 {[%emt 0:01:20]} f4 {[%emt 0:00:00]} 34. Nef1 {[%emt 0:00:29]} dxc4 {[%emt 0:00:00]} 35. Qc2 {[%emt 0:00:16]} c3 {[%emt 0:00:00]} 36. Nb3 {[%emt 0:00:16]} f3 {[%emt 0:00:00]} 37. Qc1 {[%emt 0:00:54]} Qf6 {[%emt 0:00:00]} 38. Qe3 {[%emt 0:01:26]} Qg6 {[%emt 0:00:00]} 39. Kh2 {[%emt 0:00:34]} fxg2 {[%emt 0:00:00]} 40. Ng3 {[%emt 0:00:00]} hxg3+ {[%emt 0:00:00]} 41. Qxg3 {[%emt 0:03:43]} c2 {[%emt 0:00:00]} 42. Nc5 {[%emt 0:01:34]} e5 {[%emt 0:00:00]} 43. Rxa5 {[%emt 0:23:55]} exd4 {[%emt 0:00:00]} 44. Ra6 {[%emt 0:01:06]} Nf3+ {[%emt 0:00:00]} 0-1